fUST/lending_fUST_20250719
["ID","MTS","AMOUNT","RATE_DAILY","PERIOD"]
[373298872,1752931842548,-460.0,0.00017888,2]
[373298873,1752931842559,-460.0,0.00017888,2]
[373298874,1752931842569,-460.0,0.00017888,2]
[373298875,1752931842579,-460.0,0.00017888,2]
[373298876,1752931842588,-460.0,0.00017888,2]
[373298877,1752931842598,-460.0,0.00017888,2]
[373298878,1752931842608,-460.0,0.00017889,2]
[373298879,1752931842618,-460.0,0.00017889,2]
[373298880,1752931842628,-460.0,0.00017889,2]
[373298881,1752931842637,-460.0,0.00017889,2]
[373298882,1752931842646,-460.0,0.00017889,2]
[373298883,1752931842656,-555.8,0.00017889,2]
[373298884,1752931842666,-460.0,0.00017889,2]
[373298885,1752931842675,-460.0,0.00017889,2]
[373298886,1752931842685,-460.0,0.00017889,2]
[373298887,1752931842694,-460.0,0.00017889,2]
[373298888,1752931842703,-460.0,0.00017889,2]
[373298889,1752931842712,-460.0,0.00017889,2]
[373298890,1752931842722,-460.0,0.00017889,2]
[373298891,1752931842731,-460.0,0.00017889,2]
[373298892,1752931842740,-460.0,0.00017889,2]
[373298893,1752931842749,-460.0,0.00017889,2]
[373298894,1752931842759,-538.95,0.00017889,2]
[373298895,1752931842768,-460.0,0.00017889,2]
[373298896,1752931842777,-460.0,0.00017889,2]
[373298897,1752931842786,-508.98,0.00017889,2]
[373298898,1752931842795,-460.0,0.00017889,2]
[373298899,1752931842805,-460.0,0.00017889,2]
[373298900,1752931842815,-460.0,0.00017889,2]
[373298901,1752931842825,-460.0,0.00017889,2]
[373298902,1752931842834,-460.0,0.0001789,2]
[373298903,1752931842844,-460.0,0.0001789,2]
[373298905,1752931842854,-460.0,0.0001789,2]
[373298906,1752931842863,-460.0,0.0001789,2]
[373298907,1752931842873,-460.0,0.0001789,2]
[373298908,1752931842882,-460.0,0.0001789,2]
[373298909,1752931843009,-3536.2548053,0.000179,2]
[373298910,1752931843038,-273.42693762,0.00017939,2]
[373298911,1752931843048,-1000.0,0.00017952,2]
[373298912,1752931843057,-1000.0,0.00017952,2]
[373298913,1752931843068,-23717.30463897,0.00018,2]
[373298914,1752931843078,-1000.0,0.00018013,2]
[373298915,1752931843088,-160.0,0.00018127,2]
[373298916,1752931843098,-839.454303,0.00018127,2]
[373298917,1752931843109,-160.0,0.00018127,2]
[373298918,1752931843119,-160.0,0.00018127,2]
[373298919,1752931843129,-476.34170116,0.00018127,2]
[373298920,1752931843140,-160.0,0.00018127,2]
[373298921,1752931843151,-160.0,0.00018127,2]
[373298922,1752931843161,-215.67360783,0.00018127,2]
[373298923,1752931843172,-160.0,0.00018127,2]
[373298924,1752931843181,-12612.80205064,0.00018127,2]
[373298925,1752931843191,-525.83049785,0.00018127,2]
[373298926,1752931843201,-160.0,0.00018127,2]
[373298927,1752931843211,-160.0,0.00018127,2]
[373298928,1752931843221,-214.52603969,0.00018127,2]
[373298929,1752931843231,-230.94145789,0.00018127,2]
[373298930,1752931843241,-460.0,0.00018161,2]
[373298931,1752931843251,-460.0,0.00018161,2]
[373298932,1752931843260,-460.0,0.00018161,2]
[373298933,1752931843270,-460.0,0.00018162,2]
[373298934,1752931843280,-460.0,0.00018162,2]
[373298935,1752931843289,-972.7,0.00018162,2]
[373298936,1752931843299,-460.0,0.00018162,2]
[373298937,1752931843310,-460.0,0.00018162,2]
[373298938,1752931843320,-460.0,0.00018162,2]
[373298939,1752931843330,-602.09,0.00018162,2]
[373298940,1752931843340,-460.0,0.00018162,2]
[373298941,1752931843350,-460.0,0.00018162,2]
[373298942,1752931843360,-460.0,0.00018162,2]
[373298943,1752931843370,-460.0,0.00018162,2]
[373298944,1752931843380,-460.0,0.00018162,2]
[373298945,1752931843390,-460.0,0.00018162,2]
[373298946,1752931843401,-460.0,0.00018163,2]
[373298947,1752931843411,-460.0,0.00018163,2]
[373298948,1752931843422,-460.0,0.00018163,2]
[373298949,1752931843432,-460.0,0.00018163,2]
[373298950,1752931843441,-460.0,0.00018163,2]
[373298951,1752931843451,-460.0,0.00018163,2]
[373298952,1752931843461,-460.0,0.00018163,2]
[373298953,1752931843471,-460.0,0.00018163,2]
[373298954,1752931843481,-215.7,0.00018163,2]
[373298955,1752931843494,-460.0,0.00018163,2]
[373298956,1752931843505,-538.95,0.00018163,2]
[373298957,1752931843514,-460.0,0.00018163,2]
[373298958,1752931843524,-460.0,0.00018163,2]
[373298959,1752931843534,-508.98,0.00018163,2]
[373298960,1752931843543,-434.75746769,0.00018163,2]
[373298961,1752931843553,-460.0,0.00018163,2]
[373298962,1752931843562,-460.0,0.00018163,2]
[373298963,1752931843572,-460.0,0.00018163,2]
[373298964,1752931843581,-460.0,0.00018164,2]
[373298965,1752931843590,-460.0,0.00018164,2]
[373298966,1752931843600,-460.0,0.00018164,2]
[373298967,1752931843611,-460.0,0.00018164,2]
[373298968,1752931843621,-166.82,0.00018164,2]
[373298969,1752931843630,-1000.0,0.00018168,2]
[373298970,1752931843641,-3536.25480502,0.00018176,2]
[373298971,1752931843651,-427.34,0.00018428,3]
[373298972,1752931843661,-470.08,0.00018428,3]
[373298973,1752931843671,-460.0,0.00018435,2]
[373298974,1752931843680,-460.0,0.00018435,2]
[373298975,1752931843689,-460.0,0.00018435,2]
[373298976,1752931843699,-460.0,0.00018436,2]
[373298977,1752931843709,-460.0,0.00018436,2]
[373298978,1752931843718,-972.7,0.00018436,2]
[373298979,1752931843728,-460.0,0.00018436,2]
[373298980,1752931843739,-460.0,0.00018436,2]
[373298981,1752931843749,-602.09,0.00018436,2]
[373298982,1752931843759,-460.0,0.00018436,2]
[373298983,1752931843768,-460.0,0.00018436,2]
[373298984,1752931843779,-460.0,0.00018436,2]
[373298985,1752931843790,-460.0,0.00018436,2]
[373298986,1752931843801,-460.0,0.00018436,2]
[373298987,1752931843811,-460.0,0.00018437,2]
[373298988,1752931843821,-460.0,0.00018437,2]
[373298989,1752931843830,-460.0,0.00018437,2]
[373298990,1752931843841,-460.0,0.00018437,2]
[373298991,1752931843851,-538.95,0.00018437,2]
[373298992,1752931843862,-460.0,0.00018437,2]
[373298993,1752931843872,-262.22,0.00018437,2]
[373298994,1752931843882,-508.98,0.00018437,2]
[373298995,1752931843892,-460.0,0.00018437,2]
[373298996,1752931843903,-460.0,0.00018437,2]
[373298997,1752931843912,-425.28,0.00018437,2]
[373298998,1752931843922,-460.0,0.00018438,2]
[373298999,1752931843932,-460.0,0.00018438,2]
[373299000,1752931843942,-460.0,0.00018438,2]
[373299001,1752931843952,-460.0,0.00018438,2]
[373299002,1752931843962,-3536.25480502,0.00018452,2]
[373299003,1752931843971,-500.0,0.000185,2]
[373299004,1752931843981,-1500.0,0.000185,2]
[373299005,1752931843991,-500.0,0.00018561,2]
[373299006,1752931844001,-400.72,0.00018709,2]
[373299007,1752931844010,-460.0,0.00018709,2]
[373299008,1752931844020,-460.0,0.00018709,2]
[373299009,1752931844029,-460.0,0.0001871,2]
[373299010,1752931844039,-460.0,0.0001871,2]
[373299011,1752931844048,-972.7,0.0001871,2]
[373299012,1752931844059,-460.0,0.0001871,2]
[373299013,1752931844071,-602.09,0.0001871,2]
[373299014,1752931844080,-460.0,0.0001871,2]
[373299015,1752931844089,-558.38,0.0001871,2]
[373299016,1752931844099,-460.0,0.0001871,2]
[373299017,1752931844108,-477.68,0.0001871,2]
[373299018,1752931844118,-460.0,0.0001871,2]
[373299019,1752931844127,-573.07,0.00018711,2]
[373299020,1752931844136,-460.0,0.00018711,2]
[373299021,1752931844146,-460.0,0.00018711,2]
[373299022,1752931844156,-460.0,0.00018711,2]
[373299023,1752931844166,-538.95,0.00018711,2]
[373299024,1752931844176,-438.49,0.00018711,2]
[373299025,1752931844185,-508.98,0.00018711,2]
[373299026,1752931844195,-460.0,0.00018711,2]
[373299027,1752931844205,-460.0,0.00018712,2]
[373299028,1752931844215,-3536.25480502,0.00018728,2]
[373299029,1752931844225,-957.38424895,0.000189,2]
[373299030,1752931844235,-460.0,0.00018983,2]
[373299031,1752931844245,-460.0,0.00018983,2]
[373299032,1752931844255,-972.7,0.00018984,2]
[373299033,1752931844266,-602.09,0.00018984,2]
[373299034,1752931844276,-460.0,0.00018984,2]
[373299035,1752931844286,-460.0,0.00018984,2]
[373299036,1752931844296,-460.0,0.00018984,2]
[373299037,1752931844306,-460.0,0.00018985,2]
[373299038,1752931844317,-428.98,0.00018985,2]
[373299039,1752931844327,-538.95,0.00018985,2]
[373299040,1752931844336,-508.98,0.00018985,2]
[373299041,1752931844348,-605.01,0.00018985,2]
[373299042,1752931844358,-460.0,0.00018986,2]
[373299043,1752931844368,-3536.25480502,0.00019003,2]
[373299044,1752931844378,-500.0,0.00019048,2]
[373299045,1752931844389,-666.0,0.00019178,2]
[373299046,1752931844399,-204.412562,0.00019178,2]
[373299047,1752931844409,-207.4,0.0001924,2]
[373299048,1752931844421,-460.0,0.00019257,2]
[373299049,1752931844431,-460.0,0.00019257,2]
[373299050,1752931844441,-972.7,0.00019258,2]
[373299051,1752931844451,-602.09,0.00019258,2]
[373299052,1752931844461,-460.0,0.00019258,2]
[373299053,1752931844470,-460.0,0.00019258,2]
[373299054,1752931844480,-363.52,0.00019258,2]
[373299055,1752931844489,-460.0,0.00019259,2]
[373299056,1752931844499,-538.95,0.00019259,2]
[373299057,1752931844509,-508.98,0.00019259,2]
[373299058,1752931844519,-3536.25480502,0.00019279,2]
[373299059,1752931844528,-38605.66717555,0.000193,2]
[373299060,1752931844537,-500.0,0.00019489,2]
[373299061,1752931844553,-1471.85939406,0.00019489,2]
[373299062,1752931844563,-500.0,0.00019489,2]
[373299063,1752931844572,-1471.85939406,0.00019489,2]
[373299064,1752931844582,-1471.85939406,0.00019489,2]
[373299065,1752931844591,-321.62151101,0.00019489,2]
[373299066,1752931844601,-1471.85939406,0.00019489,2]
[373299067,1752931844610,-1471.85939406,0.00019489,2]
[373299068,1752931844620,-1471.85939406,0.00019489,2]
[373299069,1752931844629,-1471.85939406,0.00019489,2]
[373299070,1752931844638,-1471.85939406,0.00019489,2]
[373299071,1752931844647,-1471.85939406,0.00019489,2]
[373299072,1752931844657,-1471.85939406,0.00019489,2]
[373299073,1752931844666,-1471.85939406,0.00019489,2]
[373299074,1752931844676,-1471.85939406,0.00019489,2]
[373299075,1752931844685,-1471.85939406,0.00019489,2]
[373299076,1752931844695,-1471.85939406,0.00019489,2]
[373299077,1752931844704,-1471.85939406,0.00019489,2]
[373299078,1752931844713,-1471.85939406,0.00019489,2]
[373299079,1752931844722,-124332.83828679,0.0001949,2]
[373299080,1752931844732,-460.0,0.00019531,2]
[373299081,1752931844741,-460.0,0.00019531,2]
[373299082,1752931844751,-972.7,0.00019532,2]
[373299083,1752931844760,-602.09,0.00019532,2]
[373299084,1752931844769,-460.0,0.00019532,2]
[373299085,1752931844779,-460.0,0.00019532,2]
[373299086,1752931844788,-460.0,0.00019533,2]
[373299087,1752931844798,-538.95,0.00019533,2]
[373299088,1752931844807,-508.98,0.00019533,2]
[373299089,1752931844817,-3536.25480502,0.00019555,2]
[373299090,1752931844826,-460.0,0.00019805,2]
[373299091,1752931844836,-188.72,0.00019805,2]
[373299092,1752931844845,-972.7,0.00019806,2]
[373299093,1752931844855,-602.09,0.00019806,2]
[373299094,1752931844865,-460.0,0.00019806,2]
[373299095,1752931844874,-382.95,0.00019806,2]
[373299096,1752931844884,-460.0,0.00019807,2]
[373299097,1752931844893,-538.95,0.00019807,2]
[373299098,1752931844903,-508.98,0.00019807,2]
[373299099,1752931844913,-3536.25480502,0.00019831,2]
[373299100,1752931844923,-285.88152679,0.00019863,2]
[373299101,1752931844932,-500.0,0.00019865,2]
[373299102,1752931844942,-11230.48444009,0.0002,2]
[373299103,1752931844951,-8182.36496867,0.0002,2]
[373299104,1752931844961,-3193.95892131,0.0002,2]
[373299105,1752931844970,-362.6568148,0.0002,2]
[373299106,1752931844980,-71504.53584913,0.0002,2]
[373299107,1752931844989,-71682.65200165,0.0002,2]
[373299108,1752931844998,-460.0,0.00020079,2]
[373299109,1752931845008,-972.7,0.0002008,2]
[373299110,1752931845019,-602.09,0.0002008,2]
[373299111,1752931845028,-460.0,0.0002008,2]
[373299112,1752931845038,-171.11,0.00020081,2]
[373299113,1752931845047,-538.95,0.00020081,2]
[373299114,1752931845057,-508.98,0.00020081,2]
[373299115,1752931845067,-3536.25480502,0.00020107,2]
[373299116,1752931845077,-362.0,0.00020168,2]
[373299117,1752931845087,-488.449632,0.00020187,2]
[373299118,1752931845096,-2126.04845076,0.00020221,2]
[373299119,1752931845106,-460.0,0.00020353,2]
[373299120,1752931845117,-972.7,0.00020354,2]
[373299121,1752931845127,-602.09,0.00020354,2]
[373299122,1752931845140,-460.0,0.00020354,2]
[373299123,1752931845155,-538.95,0.00020355,2]
[373299124,1752931845165,-508.98,0.00020355,2]
[373299125,1752931845175,-3536.25480502,0.00020383,3]
[373299126,1752931845185,-362.0,0.00020409,2]
[373299127,1752931845194,-362.0,0.00020454,2]
[373299128,1752931845203,-9292.58942053,0.000205,2]
[373299129,1752931845213,-362.0,0.00020567,2]
[373299130,1752931845222,-500.0,0.00020575,2]
[373299131,1752931845232,-215.0738,0.00020609,2]
[373299132,1752931845241,-460.0,0.00020627,2]
[373299133,1752931845251,-972.7,0.00020628,2]
[373299134,1752931845261,-602.09,0.00020628,2]
[373299135,1752931845271,-460.0,0.00020628,2]
[373299136,1752931845280,-538.95,0.00020629,2]
[373299137,1752931845290,-508.98,0.00020629,2]
[373299138,1752931845300,-407.28226249,0.00020637,2]
[373299139,1752931845309,-3536.25480502,0.00020659,3]
[373299140,1752931845319,-362.0,0.00020736,2]
[373299141,1752931845329,-16127.25694353,0.00020739,2]
[373299143,1752931845339,-500.0,0.00020757,2]
[373299144,1752931845348,-833.492,0.0002078,2]
[373299145,1752931845357,-500.0,0.00020792,2]
[373299146,1752931845367,-1233.36,0.000208,2]
[373299147,1752931845376,-362.0,0.0002083,2]
[373299148,1752931845386,-362.0,0.00020859,2]
[373299149,1752931845396,-460.0,0.00020901,2]
[373299150,1752931845406,-972.7,0.00020902,2]
[373299151,1752931845418,-602.09,0.00020902,2]
[373299152,1752931845458,-343.73918167,0.00020902,2]
[373299153,1752931845468,-538.95,0.00020903,2]
[373299154,1752931845477,-508.98,0.00020903,2]
[373299155,1752931845488,-3536.25480502,0.00020934,4]
[373299156,1752931845499,-185190.70443502,0.00021,4]
[373299157,1752931845508,-224.2,0.0002105,2]
[373299158,1752931845518,-500.0,0.00021064,2]
[373299159,1752931845527,-1000.0,0.00021123,2]
[373299160,1752931845537,-362.0,0.00021158,2]
[373299161,1752931845547,-362.0,0.00021164,2]
[373299162,1752931845556,-460.0,0.00021175,2]
[373299163,1752931845567,-972.7,0.00021176,2]
[373299164,1752931845576,-602.09,0.00021176,2]
[373299165,1752931845586,-538.95,0.00021177,2]
[373299166,1752931845595,-508.98,0.00021177,2]
[373299167,1752931845605,-3536.25480502,0.0002121,4]
[373299168,1752931845614,-2156.0,0.00021249,2]
[373299169,1752931845623,-968.0,0.00021249,2]
[373299170,1752931845633,-407.0,0.00021249,2]
[373299171,1752931845642,-649.403,0.00021249,2]
[373299172,1752931845651,-362.0,0.00021268,2]
[373299173,1752931845661,-362.0,0.0002131,2]
[373299174,1752931845670,-362.0,0.00021311,2]
[373299175,1752931845679,-362.0,0.00021317,2]
[373299176,1752931845699,-362.0,0.00021339,2]
[373299178,1752931845710,-503.17903582,0.0002134,2]
[373299179,1752931845719,-362.0,0.00021352,2]
[373299180,1752931845730,-362.0,0.00021414,2]
[373299181,1752931845739,-460.0,0.00021449,2]
[373299182,1752931845748,-972.7,0.0002145,2]
[373299183,1752931845758,-602.09,0.0002145,2]
[373299184,1752931845767,-538.95,0.00021451,2]
[373299185,1752931845776,-508.98,0.00021451,2]
[373299186,1752931845785,-3536.25480502,0.00021486,5]
[373299187,1752931845794,-362.0,0.00021587,2]
[373299188,1752931845803,-362.0,0.00021596,2]
[373299189,1752931845812,-362.0,0.00021645,2]
[373299190,1752931845822,-362.0,0.00021663,2]
[373299191,1752931845831,-1000.0,0.00021671,2]
[373299192,1752931845840,-335.88,0.00021723,2]
[373299193,1752931845850,-972.7,0.00021724,2]
[373299194,1752931845861,-602.09,0.00021724,2]
[373299195,1752931845870,-538.95,0.00021725,2]
[373299196,1752931845879,-508.98,0.00021725,2]
[373299197,1752931845889,-362.0,0.00021751,2]
[373299198,1752931845898,-3536.25480502,0.00021762,5]
[373299199,1752931845908,-362.0,0.00021775,2]
[373299200,1752931845918,-362.0,0.00021777,2]
[373299201,1752931845928,-362.0,0.00021948,2]
[373299202,1752931845937,-223.0315306,0.00021978,2]
[373299203,1752931845947,-972.7,0.00021998,2]
[373299204,1752931845957,-602.09,0.00021998,2]
[373299205,1752931845966,-538.95,0.00021999,2]
[373299206,1752931845975,-508.98,0.00021999,2]
[373299207,1752931845986,-151.0,0.00022,7]
[373299208,1752931845995,-151.0,0.00022,7]
[373299210,1752931846004,-214.52603969,0.00022,7]
[373299212,1752931846013,-47200.65,0.00022,2]
[373299213,1752931846022,-12612.80205064,0.00022,7]
[373299214,1752931846031,-10686.32,0.00022,7]
[373299215,1752931846040,-1738.39,0.00022,7]
[373299216,1752931846049,-4717.52,0.00022,7]
[373299217,1752931846058,-3536.25480502,0.00022038,6]
[373299218,1752931846069,-250.0,0.00022058,2]
[373299219,1752931846078,-362.0,0.0002211,2]
[373299220,1752931846088,-500.0,0.0002216,2]
[373299221,1752931846097,-972.7,0.00022272,2]
[373299222,1752931846106,-602.09,0.00022272,2]
[373299223,1752931846115,-538.95,0.00022273,2]
[373299224,1752931846125,-508.98,0.00022273,2]
[373299225,1752931846134,-3536.25480502,0.00022314,7]
[373299226,1752931846143,-2751.80906737,0.00022357,7]
[373299227,1752931846152,-972.7,0.00022546,2]
[373299228,1752931846161,-602.09,0.00022546,2]
[373299229,1752931846172,-538.95,0.00022547,2]
[373299230,1752931846181,-508.98,0.00022547,2]
[373299231,1752931846190,-3536.25480502,0.0002259,7]
[373299232,1752931846200,-204.412562,0.00022603,2]
[373299233,1752931846210,-528.66,0.00022619,7]
[373299234,1752931846219,-528.66,0.00022719,3]
[373299235,1752931846229,-500.0,0.00022788,2]
[373299236,1752931846239,-528.66,0.00022819,4]
[373299237,1752931846249,-972.7,0.0002282,2]
[373299238,1752931846259,-602.09,0.0002282,2]
[373299239,1752931846268,-538.95,0.00022821,2]
[373299240,1752931846277,-508.98,0.00022821,2]
[373299241,1752931846287,-3536.25480502,0.00022866,8]
[373299242,1752931846296,-9147.21087384,0.000229,7]
[373299243,1752931846306,-528.66,0.00022919,5]
[373299244,1752931846316,-9810.06450645,0.00023,2]
[373299245,1752931846325,-62468.15426691,0.00023,10]
[373299246,1752931846357,-2123.83212,0.00023,10]
[373299247,1752931846499,2464.793252,0.00015996,2]
[373299248,1752931846574,-6986.62179986,0.00023,10]
[373299249,1752931846589,-13464.00592691,0.00023,10]
[373299254,1752931995494,179.66615604,0.00016287,2]
[373299257,1752932170904,439.604668,0.00013699,2]
[373299258,1752932199107,24900.0,0.00016475,2]
[373299341,1752933032336,-198.538905,0.00016708,2]
[373299343,1752933032346,-300.0,0.0001679,2]
[373299345,1752933032356,-460.0,0.00016791,2]
[373299347,1752933032366,-460.0,0.00016791,2]
[373299348,1752933032376,-460.0,0.00016791,2]
[373299350,1752933032386,-460.0,0.00016791,2]
[373299352,1752933032396,-460.0,0.00016791,2]
[373299355,1752933032405,-460.0,0.00016791,2]
[373299357,1752933032414,-900.0,0.000169,2]
[373299360,1752933032424,-490.94245167,0.00016995,2]
[373299363,1752933032433,-1549.91795233,0.00017065,2]
[373299366,1752933032442,-221.71658055,0.00017065,2]
[373299369,1752933032451,-460.0,0.00017065,2]
[373299372,1752933032460,-460.0,0.00017065,2]
[373299374,1752933032469,-154.66216321,0.00017339,2]
[373299376,1752933032479,-460.0,0.00017339,2]
[373299378,1752933032489,-269.91,0.00017613,2]
[373299380,1752933032498,-500.0,0.00017889,2]
[373299383,1752933032518,-460.0,0.00017898,2]
[373299385,1752933032528,-460.0,0.00017898,2]
[373299387,1752933032538,-460.0,0.00017898,2]
[373299389,1752933032547,-460.0,0.00017898,2]
[373299391,1752933032557,-460.0,0.00017898,2]
[373299393,1752933032566,-460.0,0.00017898,2]
[373299395,1752933032576,-460.0,0.00017898,2]
[373299397,1752933032587,-589.8,0.00017898,2]
[373299399,1752933032597,-460.0,0.00017899,2]
[373299401,1752933032607,-460.0,0.00017899,2]
[373299403,1752933032616,-460.0,0.00017899,2]
[373299405,1752933032625,-460.0,0.00017899,2]
[373299407,1752933032635,-460.0,0.00017899,2]
[373299409,1752933032645,-429.98,0.00017899,2]
[373299411,1752933032654,-460.0,0.00017899,2]
[373299413,1752933032664,-460.0,0.00017899,2]
[373299416,1752933032674,-460.0,0.00017899,2]
[373299417,1752933032683,-656.8,0.00017899,2]
[373299420,1752933032694,-460.0,0.00017899,2]
[373299422,1752933032703,-460.0,0.00017899,2]
[373299424,1752933032712,-460.0,0.00017899,2]
[373299426,1752933032722,-460.0,0.00017899,2]
[373299428,1752933032731,-460.0,0.00017899,2]
[373299430,1752933032740,-460.0,0.00017899,2]
[373299432,1752933032750,-460.0,0.00017899,2]
[373299434,1752933032759,-561.23780052,0.000179,3]
[373299436,1752933032772,-438.76219948,0.000179,3]
[373299438,1752933032782,-1066.48780052,0.000179,2]
[373299598,1752933046397,-460.0,0.00017899,2]
[373299599,1752933046408,-460.0,0.00017899,2]
[373299600,1752933046417,-460.0,0.00017899,2]
[373299601,1752933046427,-2172.37046843,0.000179,2]
[373299602,1752933046437,-282.61101353,0.00018072,2]
[373299603,1752933046449,-460.0,0.00018126,2]
[373299604,1752933046459,-460.0,0.00018126,2]
[373299605,1752933046469,-434.0557907,0.00018126,2]
[373299606,1752933046479,-460.0,0.00018126,2]
[373299607,1752933046489,-190.40801784,0.00018126,2]
[373299608,1752933046498,-446.5547095,0.00018126,2]
[373299652,1752933672175,467.412121,0.00013699,2]
[373299664,1752933904487,300.0,0.00027,120]
[373299665,1752933951776,500.0,0.00027,120]
[373299666,1752933984916,500.0,0.00027,120]
[373299735,1752934232601,-486.21870668,0.00017039,2]
[373299737,1752934232615,-240.76926184,0.0001713,2]
[373299739,1752934232626,-300.0,0.00017137,2]
[373299741,1752934232637,-8.67988065,0.00017137,2]
[373299743,1752934232649,-291.32011935,0.00017137,2]
[373299745,1752934232658,-1200.0,0.00017137,2]
[373299747,1752934232669,-1200.0,0.00017138,2]
[373299750,1752934232678,-460.0,0.00017138,2]
[373299751,1752934232688,-460.0,0.00017138,2]
[373299752,1752934232697,-356.28136221,0.00017138,2]
[373299753,1752934232706,-460.0,0.00017138,2]
[373299755,1752934232715,-460.0,0.00017138,2]
[373299756,1752934232725,-460.0,0.00017138,2]
[373299757,1752934232735,-482.23671838,0.00017138,2]
[373299758,1752934232744,-167.9467967,0.00017138,2]
[373299759,1752934232754,-460.0,0.00017138,2]
[373299760,1752934232763,-460.0,0.00017138,2]
[373299761,1752934232772,-460.0,0.00017138,2]
[373299762,1752934232781,-395.77500336,0.00017138,2]
[373299870,1752934238597,-80.50499664,0.00017138,2]
[373299871,1752934238610,-460.0,0.00017138,2]
[373299872,1752934238620,-460.0,0.00017138,2]
[373299873,1752934238630,-369.62656306,0.00017138,2]
[373299874,1752934238640,-599.1,0.00017138,2]
[373299875,1752934238650,-1102.46,0.00017138,2]
[373299876,1752934238659,-19243.37734287,0.00017138,2]
[373299877,1752934238669,-2782.70646239,0.00017139,2]
[373299878,1752934238679,-286.55947939,0.00017139,2]
[373299879,1752934238689,-460.0,0.00017139,2]
[373299880,1752934238699,-475.91368772,0.00017139,2]
[373299881,1752934238708,-460.0,0.00017139,2]
[373299882,1752934238719,-460.0,0.00017139,2]
[373299883,1752934238728,-460.0,0.00017139,2]
[373299884,1752934238737,-554.0590434,0.00017139,2]
[373299885,1752934238746,-455.0435308,0.00017139,2]
[373299886,1752934238755,-826.87,0.00017139,2]
[373299887,1752934238765,-460.0,0.00017139,2]
[373299888,1752934238774,-460.0,0.00017139,2]
[373299889,1752934238783,-460.0,0.00017139,2]
[373299890,1752934238795,-500.0,0.00017139,2]
[373299891,1752934238805,-500.0,0.00017139,2]
[373299892,1752934238816,-460.0,0.00017139,2]
[373299893,1752934238826,-460.0,0.00017139,2]
[373299894,1752934238837,-460.0,0.00017139,2]
[373299895,1752934238856,-516.96866341,0.00017139,2]
[373299896,1752934238868,-460.0,0.00017139,2]
[373299897,1752934238877,-460.0,0.00017139,2]
[373299898,1752934238887,-460.0,0.00017139,2]
[373299899,1752934238897,-460.0,0.00017139,2]
[373299900,1752934238906,-1435.97,0.00017139,2]
[373299901,1752934238916,-920.23,0.00017139,2]
[373299902,1752934238925,-460.0,0.00017139,2]
[373299903,1752934238935,-460.0,0.00017139,2]
[373299904,1752934238944,-460.0,0.00017139,2]
[373299905,1752934238953,-460.0,0.00017139,2]
[373299906,1752934238963,-460.0,0.00017139,2]
[373299907,1752934238972,-2932.88,0.00017139,2]
[373299908,1752934238982,-460.0,0.00017139,2]
[373299909,1752934238992,-460.0,0.00017139,2]
[373299910,1752934239001,-460.0,0.00017139,2]
[373299911,1752934239011,-460.0,0.00017139,2]
[373299912,1752934239020,-169.85909588,0.00017139,2]
[373299913,1752934239030,-460.0,0.00017139,2]